[Event "Titled Tuesday Blitz March 14 Late 2023"]
[White "Adewumi, Tanitoluwa"]
[Black "Fiorito, Francisco"]
[WhiteFideId "30966396"]
[BlackFideId "180165"]
[WhiteElo "2806"]
[BlackElo "2341"]
[Result "1-0"]
[Round "08"]
[TimeControl "180+2"]
[Date "2023.03.14"]
[WhiteClock "0:01:00"]
[BlackClock "0:00:01"]

1. e4 {[%clk 0:02:55]}  c5 {[%clk 0:02:59]} 2. Nf3 {[%clk 0:02:55]}  Nc6 {[%clk 0:03:00]} 3. Bb5 {[%clk 0:02:50]}  g6 {[%clk 0:03:00]} 4. Bxc6 {[%clk 0:02:45]}  dxc6 {[%clk 0:03:01]} 5. d3 {[%clk 0:02:45]}  Bg7 {[%clk 0:03:01]} 6. h3 {[%clk 0:02:46]}  Qc7 {[%clk 0:02:59]} 7. O-O {[%clk 0:02:45]}  e5 {[%clk 0:03:00]} 8. Be3 {[%clk 0:02:45]}  b6 {[%clk 0:03:00]} 9. Nbd2 {[%clk 0:02:45]}  Ne7 {[%clk 0:02:58]} 10. a3 {[%clk 0:02:46]}  O-O {[%clk 0:02:58]} 11. b4 {[%clk 0:02:45]}  cxb4 {[%clk 0:02:58]} 12. axb4 {[%clk 0:02:46]}  f6 {[%clk 0:02:59]} 13. d4 {[%clk 0:02:22]}  exd4 {[%clk 0:02:49]} 14. Bxd4 {[%clk 0:02:20]}  Rd8 {[%clk 0:02:42]} 15. Qe2 {[%clk 0:02:17]}  Be6 {[%clk 0:01:29]} 16. Qe3 {[%clk 0:02:15]}  Bf7 {[%clk 0:01:19]} 17. Rfe1 {[%clk 0:02:15]}  Re8 {[%clk 0:01:19]} 18. Qc3 {[%clk 0:02:14]}  Qf4 {[%clk 0:01:04]} 19. g3 {[%clk 0:02:12]}  Qd6 {[%clk 0:01:04]} 20. Nc4 {[%clk 0:02:12]}  Qe6 {[%clk 0:01:02]} 21. Ne3 {[%clk 0:02:05]}  h5 {[%clk 0:00:52]} 22. Kg2 {[%clk 0:01:54]}  Rac8 {[%clk 0:00:40]} 23. Ng5 {[%clk 0:01:18]}  Qd6 {[%clk 0:00:14]} 24. Nxf7 {[%clk 0:01:16]}  Kxf7 {[%clk 0:00:15]} 25. Nc4 {[%clk 0:01:15]}  Qe6 {[%clk 0:00:10]} 26. Rxa7 {[%clk 0:01:14]}  c5 {[%clk 0:00:09]} 27. bxc5 {[%clk 0:01:13]}  bxc5 {[%clk 0:00:09]} 28. Bxf6 {[%clk 0:01:05]}  Bxf6 {[%clk 0:00:08]} 29. e5 {[%clk 0:01:05]}  Bg7 {[%clk 0:00:06]} 30. Nd6+ {[%clk 0:01:04]}  Qxd6 {[%clk 0:00:04]} 31. Qf3+ {[%clk 0:01:00]}  Bf6 {[%clk 0:00:01]} 32. exd6 {[%clk 0:01:00]} 1-0


[Site "https://www.chess.com"]

[Event "Titled Tuesday Blitz March 14 Late 2023"]
[White "Domingo Nunez, Ruben"]
[Black "Costachi, Mihnea"]
[WhiteFideId "22245570"]
[BlackFideId "1217518"]
[WhiteElo "2404"]
[BlackElo "2456"]
[Result "1-0"]
[Round "08"]
[TimeControl "180+2"]
[Date "2023.03.14"]
[WhiteClock "0:00:13"]
[BlackClock "0:00:06"]

1. b3 {[%clk 0:02:52]}  d5 {[%clk 0:02:58]} 2. Bb2 {[%clk 0:02:50]}  Nf6 {[%clk 0:02:58]} 3. Nf3 {[%clk 0:02:51]}  g6 {[%clk 0:02:58]} 4. e3 {[%clk 0:02:52]}  Bg7 {[%clk 0:02:59]} 5. Be2 {[%clk 0:02:53]}  O-O {[%clk 0:03:00]} 6. O-O {[%clk 0:02:53]}  c5 {[%clk 0:03:00]} 7. c4 {[%clk 0:02:53]}  dxc4 {[%clk 0:02:48]} 8. bxc4 {[%clk 0:02:53]}  b6 {[%clk 0:02:48]} 9. d4 {[%clk 0:02:53]}  cxd4 {[%clk 0:02:48]} 10. exd4 {[%clk 0:02:54]}  Bb7 {[%clk 0:02:48]} 11. Nc3 {[%clk 0:02:55]}  Nc6 {[%clk 0:02:48]} 12. d5 {[%clk 0:02:55]}  Na5 {[%clk 0:02:47]} 13. Nb5 {[%clk 0:02:48]}  a6 {[%clk 0:02:44]} 14. Nbd4 {[%clk 0:02:44]}  Rc8 {[%clk 0:02:44]} 15. Rc1 {[%clk 0:02:45]}  Ne4 {[%clk 0:02:36]} 16. Re1 {[%clk 0:02:45]}  Nd6 {[%clk 0:02:36]} 17. Nd2 {[%clk 0:02:41]}  Nf5 {[%clk 0:02:15]} 18. N2b3 {[%clk 0:02:33]}  Nxb3 {[%clk 0:02:08]} 19. axb3 {[%clk 0:02:34]}  Re8 {[%clk 0:01:53]} 20. Bg4 {[%clk 0:02:33]}  e6 {[%clk 0:01:49]} 21. Bxf5 {[%clk 0:02:29]}  gxf5 {[%clk 0:01:41]} 22. Qd2 {[%clk 0:02:27]}  Qf6 {[%clk 0:01:33]} 23. Ba1 {[%clk 0:02:00]}  Qg6 {[%clk 0:01:23]} 24. Nf3 {[%clk 0:01:55]}  exd5 {[%clk 0:01:12]} 25. cxd5 {[%clk 0:01:54]}  Rxe1+ {[%clk 0:01:02]} 26. Rxe1 {[%clk 0:01:53]}  Bxa1 {[%clk 0:01:00]} 27. Rxa1 {[%clk 0:01:54]}  Rd8 {[%clk 0:01:01]} 28. Qf4 {[%clk 0:01:24]}  Bxd5 {[%clk 0:00:59]} 29. Rd1 {[%clk 0:01:18]}  Qf6 {[%clk 0:00:59]} 30. Qc7 {[%clk 0:01:09]}  Re8 {[%clk 0:00:51]} 31. Qg3+ {[%clk 0:00:51]}  Kh8 {[%clk 0:00:51]} 32. Ng5 {[%clk 0:00:45]}  Bxb3 {[%clk 0:00:42]} 33. Qxb3 {[%clk 0:00:36]}  Qxg5 {[%clk 0:00:42]} 34. Qxf7 {[%clk 0:00:36]}  Qg6 {[%clk 0:00:40]} 35. Qb7 {[%clk 0:00:33]}  b5 {[%clk 0:00:31]} 36. Rc1 {[%clk 0:00:29]}  f4 {[%clk 0:00:20]} 37. h3 {[%clk 0:00:25]}  Qe6 {[%clk 0:00:19]} 38. Rc7 {[%clk 0:00:21]}  Qg6 {[%clk 0:00:15]} 39. Rc6 {[%clk 0:00:16]}  Qg5 {[%clk 0:00:06]} 40. Qd7 {[%clk 0:00:13]} 1-0


[Site "https://www.chess.com"]

[Event "Titled Tuesday Blitz March 14 Late 2023"]
[White "Preotu, Razvan"]
[Black "Arabidze, Meri"]
[WhiteFideId "2613280"]
[BlackFideId "13604040"]
[WhiteElo "2407"]
[BlackElo "2405"]
[Result "0-1"]
[Round "08"]
[TimeControl "180+2"]
[Date "2023.03.14"]
[WhiteClock "0:00:01"]
[BlackClock "0:00:09"]

1. e4 {[%clk 0:03:00]}  c5 {[%clk 0:03:00]} 2. Nf3 {[%clk 0:02:59]}  e6 {[%clk 0:03:00]} 3. c3 {[%clk 0:02:59]}  d5 {[%clk 0:03:00]} 4. exd5 {[%clk 0:03:00]}  exd5 {[%clk 0:03:01]} 5. d4 {[%clk 0:03:00]}  Nc6 {[%clk 0:03:01]} 6. Bb5 {[%clk 0:02:59]}  Bd6 {[%clk 0:03:01]} 7. dxc5 {[%clk 0:02:59]}  Bxc5 {[%clk 0:03:02]} 8. O-O {[%clk 0:02:59]}  Ne7 {[%clk 0:03:03]} 9. Nbd2 {[%clk 0:02:58]}  O-O {[%clk 0:03:03]} 10. Nb3 {[%clk 0:02:59]}  Bb6 {[%clk 0:03:02]} 11. Re1 {[%clk 0:02:56]}  Bg4 {[%clk 0:03:02]} 12. h3 {[%clk 0:02:53]}  Bh5 {[%clk 0:03:02]} 13. Be3 {[%clk 0:02:52]}  Bxe3 {[%clk 0:03:01]} 14. Rxe3 {[%clk 0:02:53]}  a6 {[%clk 0:02:46]} 15. Be2 {[%clk 0:02:48]}  Qd6 {[%clk 0:02:30]} 16. Nfd4 {[%clk 0:02:24]}  Bg6 {[%clk 0:02:23]} 17. Qe1 {[%clk 0:01:59]}  Rad8 {[%clk 0:02:07]} 18. Rd1 {[%clk 0:01:56]}  Nf5 {[%clk 0:01:38]} 19. Nxf5 {[%clk 0:01:55]}  Bxf5 {[%clk 0:01:39]} 20. Bf3 {[%clk 0:01:53]}  Be6 {[%clk 0:01:33]} 21. Nd4 {[%clk 0:01:47]}  Nxd4 {[%clk 0:01:33]} 22. Rxd4 {[%clk 0:01:48]}  b5 {[%clk 0:01:31]} 23. Re5 {[%clk 0:01:35]}  Qc5 {[%clk 0:01:14]} 24. Qd2 {[%clk 0:01:17]}  Rd6 {[%clk 0:01:14]} 25. Qf4 {[%clk 0:01:03]}  Rfd8 {[%clk 0:01:10]} 26. Rg5 {[%clk 0:01:02]}  R6d7 {[%clk 0:00:56]} 27. Qe5 {[%clk 0:00:41]}  g6 {[%clk 0:00:56]} 28. h4 {[%clk 0:00:30]}  Qd6 {[%clk 0:00:56]} 29. Qf6 {[%clk 0:00:28]}  Qe7 {[%clk 0:00:55]} 30. Qf4 {[%clk 0:00:25]}  Qd6 {[%clk 0:00:53]} 31. Qd2 {[%clk 0:00:20]}  Qe7 {[%clk 0:00:25]} 32. h5 {[%clk 0:00:19]}  h6 {[%clk 0:00:26]} 33. Rg3 {[%clk 0:00:19]}  g5 {[%clk 0:00:26]} 34. Bg4 {[%clk 0:00:12]}  f5 {[%clk 0:00:25]} 35. Bd1 {[%clk 0:00:08]}  Qf6 {[%clk 0:00:24]} 36. Re3 {[%clk 0:00:07]}  f4 {[%clk 0:00:22]} 37. Re1 {[%clk 0:00:08]}  Bf7 {[%clk 0:00:22]} 38. Bg4 {[%clk 0:00:07]}  Re7 {[%clk 0:00:21]} 39. Kh2 {[%clk 0:00:06]}  Rde8 {[%clk 0:00:21]} 40. Rxe7 {[%clk 0:00:05]}  Qxe7 {[%clk 0:00:22]} 41. Bf3 {[%clk 0:00:04]}  Qe5 {[%clk 0:00:11]} 42. Bxd5 {[%clk 0:00:03]}  f3+ {[%clk 0:00:09]} 43. g3 {[%clk 0:00:04]}  Bxd5 {[%clk 0:00:09]} 44. Rxd5 {[%clk 0:00:05]}  Qe2 {[%clk 0:00:10]} 45. Rd7 {[%clk 0:00:03]}  Qxd2 {[%clk 0:00:09]} 46. Rxd2 {[%clk 0:00:04]}  Re2 {[%clk 0:00:09]} 47. Rd6 {[%clk 0:00:04]}  Rxf2+ {[%clk 0:00:09]} 48. Kg1 {[%clk 0:00:04]}  Rxb2 {[%clk 0:00:10]} 49. Rxa6 {[%clk 0:00:03]}  Kg7 {[%clk 0:00:09]} 50. Kf1 {[%clk 0:00:02]}  Rg2 {[%clk 0:00:09]} 51. Rb6 {[%clk 0:00:01]}  Rxg3 {[%clk 0:00:08]} 52. Rxb5 {[%clk 0:00:02]}  g4 {[%clk 0:00:09]} 53. Rf5 {[%clk 0:00:01]}  Rh3 {[%clk 0:00:09]} 0-1


[Site "https://www.chess.com"]

[Event "Titled Tuesday Blitz March 14 Late 2023"]
[White "Almeida Quintana, Omar"]
[Black "Tanenbaum, Zachary"]
[WhiteFideId "3503313"]
[BlackFideId "2060850"]
[WhiteElo "2530"]
[BlackElo "2175"]
[Result "1/2-1/2"]
[Round "08"]
[TimeControl "180+2"]
[Date "2023.03.14"]
[WhiteClock "0:00:06"]
[BlackClock "0:00:03"]

1. d4 {[%clk 0:03:00]}  d5 {[%clk 0:03:00]} 2. Nf3 {[%clk 0:02:59]}  Nf6 {[%clk 0:02:59]} 3. c4 {[%clk 0:02:59]}  dxc4 {[%clk 0:02:59]} 4. e3 {[%clk 0:02:59]}  Bg4 {[%clk 0:02:59]} 5. Bxc4 {[%clk 0:02:58]}  e6 {[%clk 0:03:00]} 6. Be2 {[%clk 0:02:56]}  Nbd7 {[%clk 0:02:57]} 7. Nc3 {[%clk 0:02:55]}  Bb4 {[%clk 0:02:56]} 8. Bd2 {[%clk 0:02:54]}  O-O {[%clk 0:02:55]} 9. Rc1 {[%clk 0:02:53]}  Qe7 {[%clk 0:02:53]} 10. a3 {[%clk 0:02:52]}  Bxc3 {[%clk 0:02:52]} 11. Bxc3 {[%clk 0:02:53]}  c5 {[%clk 0:02:51]} 12. dxc5 {[%clk 0:02:52]}  Nxc5 {[%clk 0:02:52]} 13. Bxf6 {[%clk 0:02:47]}  gxf6 {[%clk 0:02:49]} 14. Qd4 {[%clk 0:02:47]}  Bxf3 {[%clk 0:02:44]} 15. Bxf3 {[%clk 0:02:17]}  Rac8 {[%clk 0:02:35]} 16. O-O {[%clk 0:02:10]}  f5 {[%clk 0:02:27]} 17. Rc3 {[%clk 0:02:01]}  Rfd8 {[%clk 0:02:24]} 18. Qb4 {[%clk 0:01:49]}  b6 {[%clk 0:02:22]} 19. g3 {[%clk 0:01:50]}  Qf6 {[%clk 0:02:07]} 20. Qc4 {[%clk 0:01:39]}  Kg7 {[%clk 0:01:54]} 21. b4 {[%clk 0:01:28]}  b5 {[%clk 0:01:54]} 22. Qxc5 {[%clk 0:01:22]}  Qxc3 {[%clk 0:01:50]} 23. Qxb5 {[%clk 0:01:20]}  Qxa3 {[%clk 0:01:39]} 24. Qe5+ {[%clk 0:01:18]}  Kg8 {[%clk 0:01:39]} 25. b5 {[%clk 0:01:18]}  Rc1 {[%clk 0:00:48]} 26. Rxc1 {[%clk 0:01:11]}  Qxc1+ {[%clk 0:00:49]} 27. Kg2 {[%clk 0:01:11]}  Rc8 {[%clk 0:00:42]} 28. e4 {[%clk 0:00:32]}  fxe4 {[%clk 0:00:40]} 29. Bxe4 {[%clk 0:00:32]}  Qc5 {[%clk 0:00:34]} 30. Qf6 {[%clk 0:00:19]}  Qf8 {[%clk 0:00:15]} 31. Qd4 {[%clk 0:00:15]}  Rc7 {[%clk 0:00:12]} 32. Bc6 {[%clk 0:00:15]}  Qc8 {[%clk 0:00:10]} 33. Qg4+ {[%clk 0:00:14]}  Kf8 {[%clk 0:00:10]} 34. Qb4+ {[%clk 0:00:13]}  Kg7 {[%clk 0:00:08]} 35. Qg4+ {[%clk 0:00:12]}  Kh8 {[%clk 0:00:05]} 36. Qd4+ {[%clk 0:00:12]}  f6 {[%clk 0:00:04]} 37. Qxf6+ {[%clk 0:00:12]}  Rg7 {[%clk 0:00:05]} 38. h4 {[%clk 0:00:10]}  a6 {[%clk 0:00:05]} 39. h5 {[%clk 0:00:08]}  axb5 {[%clk 0:00:05]} 40. h6 {[%clk 0:00:08]}  Qxc6+ {[%clk 0:00:05]} 41. Kh2 {[%clk 0:00:09]}  Qc7 {[%clk 0:00:02]} 42. hxg7+ {[%clk 0:00:07]}  Qxg7 {[%clk 0:00:01]} 43. Qd8+ {[%clk 0:00:08]}  Qg8 {[%clk 0:00:01]} 44. Qf6+ {[%clk 0:00:05]}  Qg7 {[%clk 0:00:02]} 45. Qd8+ {[%clk 0:00:06]}  Qg8 {[%clk 0:00:02]} 46. Qf6+ {[%clk 0:00:06]}  Qg7 {[%clk 0:00:03]} 1/2-1/2


[Site "https://www.chess.com"]

[Event "Titled Tuesday Blitz March 14 Late 2023"]
[White "Skvortsov, Andrei"]
[Black "Tica, Sven"]
[WhiteFideId "24108600"]
[BlackFideId "14526948"]
[WhiteElo "2259"]
[BlackElo "2348"]
[Result "1-0"]
[Round "08"]
[TimeControl "180+2"]
[Date "2023.03.14"]
[WhiteClock "0:01:28"]
[BlackClock "0:00:27"]

1. e4 {[%clk 0:03:00]}  g6 {[%clk 0:02:47]} 2. d4 {[%clk 0:02:59]}  Bg7 {[%clk 0:02:43]} 3. g3 {[%clk 0:02:59]}  b6 {[%clk 0:02:40]} 4. Bg2 {[%clk 0:02:59]}  Bb7 {[%clk 0:02:41]} 5. Ne2 {[%clk 0:02:59]}  d6 {[%clk 0:02:41]} 6. O-O {[%clk 0:02:59]}  e6 {[%clk 0:02:41]} 7. Nd2 {[%clk 0:02:58]}  Ne7 {[%clk 0:02:42]} 8. c3 {[%clk 0:02:58]}  Nd7 {[%clk 0:02:42]} 9. a4 {[%clk 0:02:57]}  a6 {[%clk 0:02:42]} 10. Nc4 {[%clk 0:02:52]}  h6 {[%clk 0:02:41]} 11. d5 {[%clk 0:02:51]}  e5 {[%clk 0:02:37]} 12. f4 {[%clk 0:02:52]}  f5 {[%clk 0:02:36]} 13. fxe5 {[%clk 0:02:51]}  Nxe5 {[%clk 0:02:37]} 14. Nxe5 {[%clk 0:02:51]}  Bxe5 {[%clk 0:02:37]} 15. Nd4 {[%clk 0:02:49]}  Qd7 {[%clk 0:02:24]} 16. Ne6 {[%clk 0:02:48]}  c6 {[%clk 0:02:25]} 17. c4 {[%clk 0:02:44]}  b5 {[%clk 0:02:18]} 18. axb5 {[%clk 0:02:43]}  axb5 {[%clk 0:02:18]} 19. Rxa8+ {[%clk 0:02:43]}  Bxa8 {[%clk 0:02:19]} 20. b3 {[%clk 0:02:38]}  Rh7 {[%clk 0:01:56]} 21. Be3 {[%clk 0:02:36]}  bxc4 {[%clk 0:01:52]} 22. bxc4 {[%clk 0:02:35]}  cxd5 {[%clk 0:01:53]} 23. exd5 {[%clk 0:02:33]}  Kf7 {[%clk 0:01:46]} 24. Qd2 {[%clk 0:02:24]}  Qc8 {[%clk 0:01:43]} 25. Bxh6 {[%clk 0:02:18]}  Qxc4 {[%clk 0:01:26]} 26. Ng5+ {[%clk 0:02:17]}  Kg8 {[%clk 0:01:27]} 27. Qa5 {[%clk 0:01:46]}  Qc8 {[%clk 0:00:29]} 28. Nxh7 {[%clk 0:01:44]}  Kxh7 {[%clk 0:00:30]} 29. Be3 {[%clk 0:01:32]}  Bb7 {[%clk 0:00:27]} 30. Rc1 {[%clk 0:01:28]} 1-0


[Site "https://www.chess.com"]

[Event "Titled Tuesday Blitz March 14 Late 2023"]
[White "Avila Pavas, Santiago"]
[Black "Nazaretyan, Tigran"]
[WhiteFideId "4437128"]
[BlackFideId "24162345"]
[WhiteElo "2365"]
[BlackElo "2111"]
[Result "1-0"]
[Round "08"]
[TimeControl "180+2"]
[Date "2023.03.14"]
[WhiteClock "0:00:29"]
[BlackClock "0:00:11"]

1. d4 {[%clk 0:03:00]}  Nf6 {[%clk 0:02:59]} 2. Nf3 {[%clk 0:03:01]}  d6 {[%clk 0:02:57]} 3. Bg5 {[%clk 0:03:01]}  Nbd7 {[%clk 0:02:57]} 4. Nbd2 {[%clk 0:03:01]}  h6 {[%clk 0:02:56]} 5. Bh4 {[%clk 0:03:01]}  g5 {[%clk 0:02:56]} 6. Bg3 {[%clk 0:03:01]}  Nh5 {[%clk 0:02:56]} 7. e4 {[%clk 0:03:00]}  Bg7 {[%clk 0:02:56]} 8. Bc4 {[%clk 0:03:00]}  e6 {[%clk 0:02:52]} 9. c3 {[%clk 0:03:00]}  a6 {[%clk 0:02:38]} 10. Qe2 {[%clk 0:03:00]}  b5 {[%clk 0:02:38]} 11. Bb3 {[%clk 0:03:00]}  Bb7 {[%clk 0:02:38]} 12. h4 {[%clk 0:02:57]}  g4 {[%clk 0:02:35]} 13. Nh2 {[%clk 0:02:51]}  Nxg3 {[%clk 0:02:34]} 14. fxg3 {[%clk 0:02:51]}  h5 {[%clk 0:02:34]} 15. Nhf1 {[%clk 0:02:51]}  Qf6 {[%clk 0:02:24]} 16. Ne3 {[%clk 0:02:50]}  Qg6 {[%clk 0:02:23]} 17. O-O {[%clk 0:02:40]}  Bxe4 {[%clk 0:02:13]} 18. Nxe4 {[%clk 0:02:40]}  Qxe4 {[%clk 0:02:13]} 19. Bc2 {[%clk 0:02:16]}  Qb7 {[%clk 0:02:08]} 20. Rae1 {[%clk 0:02:03]}  Nf6 {[%clk 0:01:54]} 21. Nf5 {[%clk 0:02:00]}  Bf8 {[%clk 0:01:21]} 22. Nxd6+ {[%clk 0:01:38]}  cxd6 {[%clk 0:01:21]} 23. Rxf6 {[%clk 0:01:39]}  O-O-O {[%clk 0:01:09]} 24. Ref1 {[%clk 0:01:34]}  Rd7 {[%clk 0:01:05]} 25. Bg6 {[%clk 0:01:31]}  fxg6 {[%clk 0:00:55]} 26. Rxf8+ {[%clk 0:01:32]}  Rxf8 {[%clk 0:00:55]} 27. Rxf8+ {[%clk 0:01:33]}  Kc7 {[%clk 0:00:55]} 28. Qxe6 {[%clk 0:01:34]}  Qc6 {[%clk 0:00:47]} 29. Qe8 {[%clk 0:01:27]}  Kb6 {[%clk 0:00:45]} 30. Qxg6 {[%clk 0:01:10]}  Qd5 {[%clk 0:00:40]} 31. Qf5 {[%clk 0:01:07]}  Qxf5 {[%clk 0:00:29]} 32. Rxf5 {[%clk 0:01:08]}  Rh7 {[%clk 0:00:28]} 33. Kf2 {[%clk 0:01:08]}  a5 {[%clk 0:00:27]} 34. Ke3 {[%clk 0:01:08]}  a4 {[%clk 0:00:27]} 35. Kd3 {[%clk 0:01:01]}  a3 {[%clk 0:00:26]} 36. bxa3 {[%clk 0:00:58]}  Ra7 {[%clk 0:00:25]} 37. Rxh5 {[%clk 0:00:58]}  Rxa3 {[%clk 0:00:25]} 38. Rh8 {[%clk 0:00:40]}  Rxa2 {[%clk 0:00:24]} 39. Rg8 {[%clk 0:00:41]}  Ra3 {[%clk 0:00:20]} 40. Kc2 {[%clk 0:00:41]}  Ra2+ {[%clk 0:00:20]} 41. Kb3 {[%clk 0:00:41]}  Rxg2 {[%clk 0:00:21]} 42. Rxg4 {[%clk 0:00:42]}  Rh2 {[%clk 0:00:21]} 43. Rg5 {[%clk 0:00:41]}  Kc6 {[%clk 0:00:21]} 44. h5 {[%clk 0:00:41]}  Rh3 {[%clk 0:00:17]} 45. g4 {[%clk 0:00:41]}  Rh1 {[%clk 0:00:17]} 46. Rg6 {[%clk 0:00:40]}  Rb1+ {[%clk 0:00:16]} 47. Kc2 {[%clk 0:00:40]}  Rh1 {[%clk 0:00:16]} 48. h6 {[%clk 0:00:41]}  Kd5 {[%clk 0:00:16]} 49. g5 {[%clk 0:00:41]}  Kc4 {[%clk 0:00:16]} 50. Rxd6 {[%clk 0:00:36]}  Rh2+ {[%clk 0:00:16]} 51. Kd1 {[%clk 0:00:36]}  Kxc3 {[%clk 0:00:17]} 52. Rd7 {[%clk 0:00:27]}  b4 {[%clk 0:00:16]} 53. h7 {[%clk 0:00:27]}  b3 {[%clk 0:00:17]} 54. g6 {[%clk 0:00:27]}  b2 {[%clk 0:00:17]} 55. Rb7 {[%clk 0:00:28]}  Kd3 {[%clk 0:00:16]} 56. Ke1 {[%clk 0:00:28]}  Ke3 {[%clk 0:00:15]} 57. Kf1 {[%clk 0:00:28]}  Kf3 {[%clk 0:00:14]} 58. Rb3+ {[%clk 0:00:28]}  Ke4 {[%clk 0:00:13]} 59. g7 {[%clk 0:00:28]}  Rxh7 {[%clk 0:00:11]} 60. g8=Q {[%clk 0:00:28]}  b1=Q+ {[%clk 0:00:10]} 61. Rxb1 {[%clk 0:00:28]}  Rh1+ {[%clk 0:00:11]} 62. Ke2 {[%clk 0:00:28]}  Rxb1 {[%clk 0:00:11]} 63. Qg6+ {[%clk 0:00:28]}  Kxd4 {[%clk 0:00:11]} 64. Qxb1 {[%clk 0:00:29]} 1-0


[Site "https://www.chess.com"]

[Event "Titled Tuesday Blitz March 14 Late 2023"]
[White "Ismagilov, Damir"]
[Black "Escalona Landi, Samid Eduardo"]
[WhiteFideId "34199982"]
[BlackFideId "3937437"]
[WhiteElo "2078"]
[BlackElo "2207"]
[Result "0-1"]
[Round "08"]
[TimeControl "180+2"]
[Date "2023.03.14"]
[WhiteClock "0:00:15"]
[BlackClock "0:00:23"]

1. d4 {[%clk 0:03:00]}  Nf6 {[%clk 0:02:59]} 2. Nf3 {[%clk 0:03:01]}  g6 {[%clk 0:03:00]} 3. Nbd2 {[%clk 0:03:00]}  d5 {[%clk 0:02:59]} 4. b3 {[%clk 0:02:59]}  Bg7 {[%clk 0:02:59]} 5. Bb2 {[%clk 0:02:59]}  O-O {[%clk 0:03:00]} 6. e3 {[%clk 0:03:00]}  c6 {[%clk 0:03:00]} 7. Be2 {[%clk 0:03:00]}  Bg4 {[%clk 0:03:01]} 8. O-O {[%clk 0:03:00]}  Nbd7 {[%clk 0:03:00]} 9. h3 {[%clk 0:03:00]}  Bxf3 {[%clk 0:03:01]} 10. Nxf3 {[%clk 0:03:01]}  Ne4 {[%clk 0:03:01]} 11. c4 {[%clk 0:03:01]}  e6 {[%clk 0:03:01]} 12. Qc2 {[%clk 0:03:01]}  Re8 {[%clk 0:03:01]} 13. Rfd1 {[%clk 0:03:01]}  a5 {[%clk 0:03:00]} 14. a3 {[%clk 0:02:58]}  Qb6 {[%clk 0:02:48]} 15. Rac1 {[%clk 0:02:56]}  f5 {[%clk 0:02:43]} 16. a4 {[%clk 0:02:48]}  Bf8 {[%clk 0:02:35]} 17. c5 {[%clk 0:02:46]}  Qc7 {[%clk 0:02:35]} 18. Bd3 {[%clk 0:02:41]}  Bg7 {[%clk 0:02:33]} 19. Rb1 {[%clk 0:02:20]}  Rf8 {[%clk 0:02:28]} 20. Ne1 {[%clk 0:02:08]}  e5 {[%clk 0:02:27]} 21. Nf3 {[%clk 0:02:03]}  Rae8 {[%clk 0:02:25]} 22. Re1 {[%clk 0:01:59]}  f4 {[%clk 0:02:17]} 23. exf4 {[%clk 0:01:54]}  exd4 {[%clk 0:02:13]} 24. Bxe4 {[%clk 0:01:53]}  dxe4 {[%clk 0:02:14]} 25. Rxe4 {[%clk 0:01:50]}  Rxe4 {[%clk 0:02:11]} 26. Qxe4 {[%clk 0:01:51]}  Qxf4 {[%clk 0:01:48]} 27. Qe6+ {[%clk 0:01:49]}  Qf7 {[%clk 0:01:48]} 28. Qxf7+ {[%clk 0:01:48]}  Rxf7 {[%clk 0:01:47]} 29. Bxd4 {[%clk 0:01:42]}  Bxd4 {[%clk 0:01:41]} 30. Nxd4 {[%clk 0:01:42]}  Nxc5 {[%clk 0:01:42]} 31. b4 {[%clk 0:01:35]}  axb4 {[%clk 0:01:40]} 32. Rxb4 {[%clk 0:01:34]}  Rd7 {[%clk 0:01:38]} 33. a5 {[%clk 0:01:04]}  Nd3 {[%clk 0:01:23]} 34. Ra4 {[%clk 0:01:03]}  Nf4 {[%clk 0:01:12]} 35. Kh2 {[%clk 0:00:42]}  Nd3 {[%clk 0:01:07]} 36. Kg3 {[%clk 0:00:39]}  Nc5 {[%clk 0:01:06]} 37. Rb4 {[%clk 0:00:39]}  Kf7 {[%clk 0:00:53]} 38. f3 {[%clk 0:00:38]}  Kf6 {[%clk 0:00:51]} 39. Nb3 {[%clk 0:00:33]}  Nxb3 {[%clk 0:00:37]} 40. Rxb3 {[%clk 0:00:34]}  Ke5 {[%clk 0:00:35]} 41. Kg4 {[%clk 0:00:24]}  c5 {[%clk 0:00:32]} 42. Kg5 {[%clk 0:00:15]}  c4 {[%clk 0:00:31]} 43. Rb1 {[%clk 0:00:15]}  c3 {[%clk 0:00:31]} 44. Re1+ {[%clk 0:00:15]}  Kd5 {[%clk 0:00:25]} 45. Rd1+ {[%clk 0:00:15]}  Kc6 {[%clk 0:00:25]} 46. Rc1 {[%clk 0:00:15]}  Rd3 {[%clk 0:00:25]} 47. Kh6 {[%clk 0:00:13]}  Kc5 {[%clk 0:00:23]} 48. Kxh7 {[%clk 0:00:14]}  Kc4 {[%clk 0:00:21]} 49. Kxg6 {[%clk 0:00:14]}  Rd5 {[%clk 0:00:20]} 50. f4 {[%clk 0:00:13]}  Rxa5 {[%clk 0:00:20]} 51. f5 {[%clk 0:00:13]}  b5 {[%clk 0:00:20]} 52. f6 {[%clk 0:00:13]}  b4 {[%clk 0:00:21]} 53. f7 {[%clk 0:00:14]}  Ra8 {[%clk 0:00:21]} 54. Kg7 {[%clk 0:00:14]}  b3 {[%clk 0:00:21]} 55. f8=Q {[%clk 0:00:14]}  Rxf8 {[%clk 0:00:21]} 56. Kxf8 {[%clk 0:00:14]}  b2 {[%clk 0:00:22]} 57. Rf1 {[%clk 0:00:14]}  c2 {[%clk 0:00:22]} 58. g4 {[%clk 0:00:15]}  c1=Q {[%clk 0:00:22]} 59. Rxc1+ {[%clk 0:00:15]}  bxc1=Q {[%clk 0:00:23]} 0-1


[Site "https://www.chess.com"]